bitfinex/quotes_SOLUSD_20250308
["timestamp","ask_amount","ask_price","bid_price","bid_amount"]
[1741416605090,21.14669665,139.3,139.28,0.033]
[1741416605721,7.1792,139.29,139.28,0.033]
[1741416606107,21.14669665,139.3,139.28,0.033]
[1741416606306,21.14669665,139.31,139.28,0.033]
[1741416606919,103.44669665,139.31,139.28,0.033]
[1741416607348,95.85196948,139.31,139.28,0.033]
[1741416607550,20.73066948,139.3,139.28,0.033]
[1741416608944,95.85196948,139.31,139.28,0.033]
[1741416609109,82.3,139.31,139.28,0.033]
[1741416609851,82.3,139.3,139.28,0.033]
[1741416610052,95.85196948,139.29,139.28,0.033]
[1741416610349,13.55196948,139.27,139.25,0.033]
[1741416610920,20.73236948,139.27,139.25,0.033]
[1741416612549,13.55196948,139.26,139.25,0.033]
[1741416613342,95.85196948,139.28,139.25,0.033]
[1741416614020,13.55196948,139.27,139.25,0.033]
[1741416614440,13.55196948,139.26,139.25,0.033]
[1741416615144,20.73276948,139.26,139.25,0.033]
[1741416616440,13.55196948,139.26,139.25,0.033]
[1741416616727,13.55196948,139.27,139.25,0.033]
[1741416617530,13.55196948,139.26,139.25,0.033]
[1741416617936,7.1804,139.27,139.25,0.033]
[1741416618128,13.55196948,139.27,139.25,0.033]
[1741416618513,13.55196948,139.28,139.25,0.033]
[1741416620413,20.73116948,139.29,139.25,0.033]
[1741416620710,13.55196948,139.29,139.25,0.033]
[1741416621122,13.55196948,139.28,139.25,0.033]
[1741416621439,13.55196948,139.26,139.25,0.033]
[1741416622115,20.73276948,139.26,139.25,0.033]
[1741416623738,13.55196948,139.26,139.25,0.033]
[1741416624030,20.73276948,139.26,139.25,0.033]
[1741416634742,24.26755599,139.26,139.25,0.033]
[1741416645853,92.21955599,139.26,139.19,0.033]
[1741416646069,13.55196948,139.22,139.19,0.033]
[1741416648147,6.22,139.25,139.19,0.033]
[1741416648148,20.73526948,139.21,139.19,0.033]
[1741416648566,13.55196948,139.2,139.19,0.033]
[1741416648755,20.73526948,139.21,139.19,0.033]
[1741416651465,13.55196948,139.2,139.19,0.033]
[1741416652164,20.73526948,139.21,139.19,0.033]
[1741416653070,20.73496948,139.22,139.19,0.033]
[1741416654275,13.55196948,139.23,139.19,0.033]
[1741416654569,103.03396948,139.24,139.19,13.58496948]
[1741416655340,82.3,139.24,139.19,20.76916948]
[1741416655545,82.3,139.24,139.2,13.55196948]
[1741416656649,103.03386948,139.24,139.19,7.2172]
[1741416656861,103.03386948,139.24,139.19,0.033]
[1741416657170,13.55196948,139.23,139.19,0.033]
[1741416657771,7.1828,139.22,139.19,0.033]
[1741416658141,11.34379822,139.23,139.19,0.033]
[1741416658348,4.16149822,139.23,139.19,0.033]
[1741416658565,13.55196948,139.25,139.19,0.033]
[1741416658755,20.73336948,139.25,139.19,13.58496948]
[1741416659271,7.1814,139.25,139.19,13.58496948]
[1741416659480,103.03286948,139.26,139.2,15.07556948]
[1741416659866,0.03,139.25,139.2,15.07556948]
[1741416660175,0.03,139.25,139.2,22.25936948]
[1741416660359,0.03,139.25,139.21,13.55196948]
[1741416660879,13.55196948,139.24,139.2,1.5236]
[1741416661296,13.55196948,139.23,139.2,1.5236]
[1741416661577,13.55196948,139.24,139.2,1.5236]
[1741416661762,7.1823,139.23,139.2,1.5236]
[1741416662271,13.55196948,139.22,139.19,0.033]
[1741416664475,20.73506948,139.22,139.19,0.033]
[1741416665053,13.55196948,139.21,139.19,0.033]
[1741416666881,20.73476948,139.22,139.19,0.033]
[1741416668877,103.03476948,139.22,139.19,0.033]
[1741416669083,13.55196948,139.2,139.19,0.033]
[1741416669786,50.0,139.19,139.15,0.033]
[1741416669988,88.52,139.18,139.15,0.033]
[1741416670158,67.7598474,139.16,139.15,0.033]
[1741416670962,74.9457474,139.16,139.15,0.033]
[1741416672787,20.73786948,139.16,139.15,0.033]
[1741416673487,74.9457474,139.16,139.15,0.033]
[1741416673981,20.73786948,139.16,139.15,0.033]
[1741416674365,24.29358833,139.16,139.15,0.033]
[1741416675091,106.59358833,139.16,139.15,0.033]
[1741416690586,24.29358833,139.16,139.15,0.033]
[1741416691379,50.0,139.13,139.05,0.033]
[1741416691577,13.55196948,139.1,139.05,0.033]
[1741416691794,20.74146948,139.1,139.05,0.033]
[1741416691974,13.55196948,139.09,139.05,0.033]
[1741416692182,20.74146948,139.1,139.05,0.033]
[1741416692381,13.55196948,139.09,139.05,0.033]
[1741416692580,13.55196948,139.08,139.05,0.033]
[1741416693804,20.74286948,139.07,139.05,0.033]
[1741416694178,102.03896948,139.06,139.05,0.033]
[1741416696109,109.23006948,139.06,139.05,0.033]
[1741416696307,102.03896948,139.06,139.05,0.033]
[1741416700617,88.487,139.06,139.05,0.033]
[1741416700821,82.267,139.09,139.05,13.58496948]
[1741416701030,102.05896948,139.12,139.07,13.55196948]
[1741416701212,102.05896948,139.12,139.06,13.55196948]
[1741416701737,102.05896948,139.12,139.07,7.1906]
[1741416702735,13.55196948,139.11,139.07,7.1906]
[1741416703413,88.507,139.12,139.07,7.1906]
[1741416703414,102.05896948,139.12,139.07,7.1906]
[1741416703735,95.81896948,139.12,139.07,7.1906]
[1741416705822,13.55196948,139.11,139.07,7.1906]
[1741416706919,13.55196948,139.11,139.06,7.1911]
[1741416707316,95.81896948,139.12,139.06,7.1911]
[1741416708044,95.81896948,139.12,139.06,20.74306948]
[1741416708243,82.267,139.12,139.07,13.55196948]
[1741416708444,13.58196948,139.13,139.07,13.55196948]
[1741416709147,13.58196948,139.13,139.08,7.1901]
[1741416710941,0.03,139.13,139.09,13.55196948]
[1741416711529,0.03,139.13,139.08,13.55196948]
[1741416711734,13.58196948,139.13,139.07,13.55196948]
[1741416712063,13.58196948,139.13,139.06,20.77606948]
[1741416712064,13.55196948,139.12,139.06,20.77606948]
[1741416712346,95.81896948,139.11,139.06,0.033]
[1741416713637,82.267,139.11,139.06,13.58496948]
[1741416713845,82.267,139.11,139.07,13.55196948]
[1741416714536,13.58196948,139.13,139.07,13.55196948]
[1741416715551,13.58196948,139.13,139.08,7.1901]
[1741416716062,0.03,139.13,139.08,20.74206948]
[1741416718961,0.03,139.13,139.09,13.55196948]
[1741416719338,0.03,139.13,139.08,20.74206948]
[1741416722363,13.58196948,139.13,139.07,20.74246948]
[1741416723234,20.76946948,139.13,139.07,20.74246948]
[1741416723840,20.76946948,139.13,139.08,13.55196948]
[1741416724039,7.2175,139.13,139.08,13.55196948]
[1741416724259,7.2175,139.13,139.08,20.74186948]
[1741416724651,0.03,139.13,139.08,20.74186948]
[1741416726459,13.58196948,139.13,139.08,20.74186948]
[1741416727463,20.76956948,139.13,139.08,7.1899]
[1741416729466,20.76956948,139.13,139.07,20.74236948]
[1741416733269,13.58196948,139.13,139.07,20.74236948]
[1741416736842,0.03,139.13,139.07,20.74236948]
[1741416737561,0.03,139.13,139.08,13.55196948]
[1741416737858,0.03,139.13,139.09,13.55196948]
[1741416739467,0.03,139.13,139.1,7.189]
[1741416741069,0.03,139.13,139.11,1.6039]
[1741416742564,0.03,139.13,139.09,19.74706948]
[1741416742865,0.03,139.13,139.09,6.1951]
[1741416744554,0.03,139.13,139.07,92.04626948]
[1741416744867,0.03,139.13,139.07,22.34626948]
[1741416745052,0.03,139.13,139.08,13.55196948]
[1741416745656,0.03,139.13,139.08,20.74156948]
[1741416746568,0.03,139.13,139.08,13.55196948]
[1741416746749,13.58196948,139.13,139.07,22.34616948]
[1741416748378,0.03,139.13,139.1,13.55196948]
[1741416748696,0.03,139.13,139.09,13.55196948]
[1741416748841,0.03,139.13,139.08,13.55196948]
[1741416749543,0.03,139.13,139.08,20.74156948]
[1741416749748,0.03,139.13,139.08,7.1896]
[1741416755061,0.03,139.13,139.1,13.55196948]
[1741416755372,0.03,139.13,139.12,15.18706948]
[1741416755578,0.03,139.13,139.12,22.37506948]
[1741416756759,0.03,139.19,139.15,13.55196948]
[1741416757660,0.03,139.19,139.14,13.55196948]
[1741416758779,0.03,139.19,139.14,20.73886948]
[1741416760278,0.03,139.19,139.15,13.55196948]
[1741416760462,0.03,139.19,139.17,13.55196948]
[1741416760669,0.03,139.19,139.18,13.55196948]
[1741416760885,0.03,139.19,139.17,13.55196948]
[1741416761176,0.03,139.19,139.16,13.55196948]
[1741416761380,0.03,139.19,139.15,19.77196948]
[1741416761759,0.03,139.19,139.15,6.22]
[1741416763868,0.03,139.19,139.15,19.77196948]
[1741416764059,0.03,139.19,139.16,13.55196948]
[1741416766076,0.03,139.19,139.15,6.22]
[1741416766257,0.03,139.19,139.14,13.55196948]
[1741416767382,0.03,139.19,139.15,13.55196948]
[1741416768962,0.03,139.19,139.15,20.73836948]
[1741416770785,0.03,139.19,139.14,13.55196948]
[1741416771873,7.2144,139.19,139.14,13.55196948]
[1741416772090,7.2144,139.19,139.14,20.73896948]
[1741416777793,0.03,139.19,139.14,20.73896948]
[1741416780396,0.03,139.19,139.18,13.55196948]
[1741416781983,0.03,139.19,139.18,20.73686948]
[1741416783091,0.03,139.19,139.17,20.73716948]
[1741416783998,0.03,139.19,139.18,13.55196948]
[1741416785284,0.03,139.19,139.18,20.73686948]
[1741416787281,0.03,139.23,139.18,109.08651834]
[1741416787481,0.03,139.23,139.22,13.55196948]
[1741416789492,0.03,139.23,139.22,20.73476948]
[1741416789896,0.03,139.23,139.22,39.38441834]
[1741416791385,0.03,139.23,139.22,41.04591834]
[1741416792412,0.03,139.23,139.22,39.38441834]
[1741416792709,0.03,139.23,139.22,13.55196948]
[1741416792883,0.03,139.23,139.21,76.8832]
[1741416793302,0.03,139.23,139.21,90.43516948]
[1741416793689,0.03,139.23,139.19,26.93596948]
[1741416794581,0.03,139.23,139.18,69.7]
[1741416794880,21.48736948,139.22,139.16,26.93776948]
[1741416795301,7.9354,139.22,139.17,13.55196948]
[1741416795881,7.9354,139.22,139.17,20.73736948]
[1741416796817,0.03,139.23,139.18,13.55196948]
[1741416797105,0.03,139.23,139.19,13.55196948]
[1741416797806,0.03,139.23,139.18,20.73666948]
[1741416798586,13.58196948,139.23,139.17,90.43716948]
[1741416799813,20.76446948,139.23,139.17,90.43716948]
[1741416800679,0.03,139.23,139.19,13.55196948]
[1741416801302,0.03,139.23,139.2,13.55196948]
[1741416802107,0.03,139.23,139.2,20.73536948]
[1741416802596,0.03,139.23,139.21,13.55196948]
[1741416802792,0.03,139.23,139.22,13.55196948]
[1741416804109,0.03,139.23,139.22,20.73476948]
[1741416806207,0.03,139.23,139.22,109.08441834]
[1741416808114,0.03,139.23,139.22,90.43476948]
[1741416811695,0.03,139.23,139.22,109.08441834]
[1741416814219,0.0001,139.23,139.22,110.1613784]
[1741416814624,0.0001,139.25,139.23,18.64964886]
[1741416814831,0.0001,139.25,139.24,13.55196948]
[1741416815712,0.0001,139.25,139.24,20.73376948]
[1741416816720,0.0001,139.25,139.24,109.08341834]
[1741416816929,0.0001,139.25,139.24,110.16002951]
[1741416817424,0.0001,139.25,139.24,109.08341834]
[1741416818400,0.0001,139.25,139.24,110.16012321]
[1741416818924,0.03,139.27,139.26,13.55196948]
[1741416819125,0.03,139.27,139.26,83.25196948]
[1741416819318,0.03,139.27,139.26,89.45196948]
[1741416819520,0.03,139.27,139.26,75.9]
[1741416820526,0.03,139.27,139.26,83.0808]
[1741416821844,0.03,139.27,139.26,69.7]
[1741416823729,0.03,139.27,139.25,7.1811]
[1741416825131,0.03,139.27,139.25,20.73306948]
[1741416825633,0.03,139.27,139.26,32.20161834]
[1741416826708,0.03,139.27,139.26,39.38241834]
[1741416827328,0.0001,139.27,139.26,39.38241834]
[1741416828323,0.0001,139.27,139.2,69.7]
[1741416828324,13.55206948,139.27,139.2,69.7]
[1741416828524,13.55196948,139.24,139.19,69.733]
[1741416828916,13.55196948,139.25,139.19,90.46926948]
[1741416829513,13.55196948,139.26,139.19,83.28496948]
[1741416829714,0.0001,139.27,139.25,0.033]
[1741416829922,13.55196948,139.26,139.25,0.033]
[1741416832521,20.73276948,139.26,139.25,0.033]
[1741416840357,13.55196948,139.26,139.25,0.033]
[1741416861856,20.73276948,139.26,139.25,0.033]
[1741416868267,13.55196948,139.26,139.25,0.033]
[1741416869247,7.1804,139.27,139.25,0.033]
[1741416869465,13.55196948,139.26,139.25,0.033]
[1741416871352,20.73276948,139.26,139.25,0.033]
[1741416871750,13.55196948,139.26,139.25,0.033]
[1741416874472,13.55206948,139.27,139.25,0.033]
[1741416874679,0.0001,139.27,139.25,0.033]
[1741416876075,13.55196948,139.26,139.25,0.033]
[1741416878268,20.73276948,139.26,139.25,0.033]
[1741416888807,26.95596948,139.26,139.25,0.033]
[1741416889263,33.15596948,139.26,139.25,0.033]
[1741416894591,13.55196948,139.26,139.25,0.033]
[1741416894796,13.55206948,139.27,139.25,0.033]
[1741416897497,0.0001,139.27,139.25,0.033]
[1741416900001,0.0001,139.27,139.25,13.58496948]
[1741416900377,0.0001,139.27,139.26,32.20161834]
[1741416900578,0.0001,139.27,139.26,103.41611834]
[1741416901583,0.0001,139.27,139.26,91.94726948]
[1741416901791,0.0001,139.27,139.26,110.59691834]
[1741416902106,0.0001,139.27,139.26,71.2145]
[1741416902477,0.0001,139.27,139.26,78.3953]
[1741416903008,0.0001,139.27,139.26,1.5145]
[1741416904378,0.0001,139.27,139.25,0.033]
[1741416905284,0.0001,139.27,139.25,7.2142]
[1741416906299,0.0001,139.27,139.25,0.033]
[1741416906889,0.01,139.29,139.28,18.64964886]
[1741416907090,0.03,139.33,139.28,101.90161834]
[1741416907403,0.03,139.33,139.32,32.20161834]
[1741416907604,0.03,139.33,139.32,101.90161834]
[1741416907906,0.03,139.33,139.32,109.07931834]
[1741416908380,0.03,139.37,139.33,18.64964886]
[1741416908581,0.03,139.37,139.35,13.55196948]
[1741416908888,0.03,139.37,139.36,32.20161834]
[1741416909090,0.03,139.37,139.36,101.90161834]
[1741416909778,0.03,139.39,139.36,108.10161834]
[1741416909976,0.03,139.39,139.38,32.20161834]
[1741416910205,0.03,139.39,139.38,39.37621834]
[1741416911383,0.03,139.39,139.38,46.95555986]
[1741416912392,0.03,139.39,139.38,116.65555986]
[1741416915301,0.03,139.4,139.39,94.97074886]
[1741416915505,0.03,139.4,139.39,117.17752692]
[1741416916112,0.03,139.4,139.39,123.27615986]
[1741416916311,0.03,139.4,139.39,88.34964886]
[1741416916489,0.03,139.4,139.39,109.48095986]
[1741416916904,0.03,139.4,139.39,88.34964886]
[1741416917213,0.03,139.4,139.39,69.7]
[1741416917515,0.03,139.4,139.39,88.34964886]
[1741416917707,0.03,139.4,139.39,109.48095986]
[1741416918789,0.03,139.4,139.39,116.65505986]
[1741416924286,0.03,139.4,139.39,109.48095986]
[1741416925107,27.922411,139.45,139.39,109.48095986]
[1741416925308,21.131311,139.43,139.38,69.733]
[1741416925503,21.131311,139.42,139.38,69.733]
[1741416925703,21.131311,139.42,139.38,0.033]
[1741416926416,21.131311,139.43,139.38,0.033]
[1741416927098,21.131311,139.43,139.38,28.338911]
[1741416927417,36.531111,139.44,139.38,28.338911]
[1741416928015,29.359511,139.44,139.38,28.338911]
[1741416929217,21.131311,139.43,139.38,0.033]
[1741416929419,28.303811,139.43,139.38,0.033]
[1741416931213,20.69953982,139.43,139.38,0.033]
[1741416935431,20.69953982,139.43,139.38,13.56003982]
[1741416936427,20.69953982,139.43,139.38,20.73453982]
[1741416937032,20.69953982,139.43,139.38,7.2075]
[1741416937238,13.52703982,139.43,139.38,7.2075]
[1741416937910,20.69923982,139.43,139.38,7.2075]
[1741416938221,28.92693982,139.44,139.38,7.2075]
[1741416942633,15.3999,139.44,139.38,7.2075]
[1741416942836,28.92693982,139.44,139.38,7.2075]
[1741416943027,13.52703982,139.42,139.38,0.033]
[1741416943933,87.43685928,139.44,139.38,0.033]
[1741416944138,13.52703982,139.42,139.38,0.033]
[1741416944440,13.52703982,139.41,139.38,0.033]
[1741416944810,13.52703982,139.42,139.38,0.033]
[1741416945405,13.52703982,139.43,139.38,0.033]
[1741416945812,21.75523982,139.44,139.38,13.56003982]
[1741416946215,13.52703982,139.43,139.38,0.033]
[1741416946819,13.52703982,139.44,139.38,13.56003982]
[1741416947435,7.8139,139.43,139.39,7.1741]
[1741416947644,7.8139,139.43,139.31,41.71007836]
[1741416947645,82.17668868,139.4,139.28,7.1796]
[1741416947938,13.52703982,139.33,139.27,84.74263982]
[1741416948121,13.52703982,139.33,139.27,71.2156]
[1741416948318,13.52703982,139.33,139.27,84.74263982]
[1741416948520,19.76703982,139.36,139.29,13.52703982]
[1741416948711,19.76703982,139.36,139.3,32.17668868]
[1741416948712,6.24,139.36,139.3,32.17668868]
[1741416948906,19.76703982,139.36,139.3,32.17668868]
[1741416949943,19.76703982,139.36,139.3,18.64964886]
[1741416950535,13.52703982,139.35,139.3,18.64964886]
[1741416950913,13.52703982,139.34,139.29,69.7]
[1741416951447,13.52703982,139.33,139.29,69.7]
[1741416951623,13.52703982,139.33,139.28,18.64964886]
[1741416951826,13.52703982,139.34,139.28,32.17668868]
[1741416953554,20.70383982,139.34,139.28,32.17668868]
[1741416953720,7.1768,139.34,139.29,13.52703982]
[1741416957326,7.1768,139.34,139.29,83.22703982]
[1741416958145,6.24,139.36,139.3,13.52703982]
[1741416958455,6.24,139.36,139.31,13.52703982]
[1741416959135,15.17403982,139.37,139.31,13.52703982]
[1741416959629,7.1757,139.36,139.31,13.52703982]
[1741416960874,15.17403982,139.37,139.31,13.52703982]
[1741416961053,20.70233982,139.37,139.31,20.70513982]
[1741416961860,13.52703982,139.36,139.31,13.52703982]
[1741416962019,13.52703982,139.36,139.31,18.64964886]
[1741416962259,13.52703982,139.35,139.3,69.7]
[1741416963685,20.70333982,139.35,139.3,69.7]
[1741416964187,20.70333982,139.35,139.3,76.8786]
[1741416964381,20.70333982,139.35,139.3,69.733]
[1741416964584,20.70333982,139.35,139.3,76.9117]
[1741416964756,13.52703982,139.35,139.3,76.9117]
[1741416967371,20.70323982,139.35,139.3,76.9117]
[1741416967693,13.52703982,139.32,139.3,0.033]
[1741416967893,13.52703982,139.31,139.3,0.033]
[1741416969268,7.8585,139.34,139.3,0.033]
[1741416969462,13.52703982,139.33,139.3,0.033]
[1741416972585,6.22,139.35,139.3,0.033]
[1741416972766,13.52703982,139.36,139.3,13.56003982]
[1741416973270,13.52703982,139.35,139.3,0.033]
[1741416973472,13.52703982,139.34,139.3,0.033]
[1741416976581,13.52703982,139.35,139.3,0.033]
[1741416979372,13.52703982,139.34,139.3,0.033]
[1741416980585,13.52703982,139.33,139.3,0.033]
[1741416980910,13.52703982,139.32,139.3,0.033]
[1741416983912,20.70473982,139.32,139.3,0.033]
[1741416984087,13.52703982,139.32,139.3,0.033]
[1741416985503,13.52703982,139.33,139.3,0.033]
[1741416986178,20.70433982,139.33,139.3,0.033]
[1741416986376,13.52703982,139.32,139.3,0.033]
[1741416989777,13.52703982,139.33,139.3,0.033]
[1741416990803,20.70423982,139.33,139.3,0.033]
[1741416994885,13.52703982,139.31,139.3,0.033]
[1741417002919,13.52703982,139.32,139.3,0.033]
[1741417003705,19.72703982,139.33,139.3,0.033]
[1741417004208,95.79403982,139.34,139.3,0.033]
[1741417004793,13.52703982,139.34,139.3,0.033]
[1741417009118,13.52703982,139.33,139.3,0.033]
[1741417016831,13.52703982,139.34,139.3,0.033]
[1741417024439,13.52703982,139.33,139.3,0.033]
[1741417025744,13.52703982,139.32,139.3,0.033]
[1741417026116,13.52703982,139.33,139.3,0.033]
[1741417027734,13.52703982,139.31,139.3,0.033]
[1741417030242,20.70493982,139.32,139.3,0.033]
[1741417036036,7.1779,139.32,139.3,0.033]
[1741417036647,20.70423982,139.33,139.3,0.033]
[1741417041252,13.52703982,139.33,139.3,0.033]
[1741417041551,82.267,139.35,139.3,13.56003982]
[1741417041751,13.52703982,139.36,139.3,13.56003982]
[1741417042552,13.52703982,139.36,139.3,20.73873982]
[1741417044644,19.72703982,139.37,139.31,13.52703982]
[1741417045033,13.52703982,139.37,139.31,13.52703982]
[1741417045846,13.52703982,139.37,139.31,20.70503982]
[1741417049249,13.52703982,139.37,139.32,13.52703982]
[1741417049562,0.03,139.38,139.33,13.52703982]
[1741417049735,0.03,139.38,139.34,13.52703982]
[1741417049935,0.03,139.38,139.37,13.52703982]
[1741417052638,0.03,139.38,139.35,22.31763982]
[1741417052838,0.03,139.38,139.36,13.52703982]
[1741417053543,0.03,139.38,139.36,20.70253982]
[1741417053862,0.03,139.38,139.37,13.52703982]
[1741417054559,0.03,139.38,139.37,32.17668868]
[1741417055159,0.03,139.38,139.37,101.87668868]
[1741417056363,0.03,139.38,139.37,109.05178868]
[1741417057466,0.03,139.38,139.37,83.22703982]
[1741417058261,0.03,139.38,139.37,13.52703982]
[1741417058660,0.03,139.38,139.36,13.52703982]
[1741417059366,0.03,139.38,139.37,13.52703982]
[1741417066176,0.03,139.38,139.37,20.70213982]
[1741417070174,0.03,139.38,139.37,20.73513982]
[1741417072082,0.03,139.38,139.37,39.38478868]
[1741417076160,0.03,139.38,139.37,109.08478868]
[1741417077186,0.03,139.38,139.37,90.43513982]
[1741417077572,0.03,139.38,139.37,109.08478868]
[1741417082600,0.03,139.38,139.37,69.733]
[1741417085075,0.03,139.38,139.37,76.9081]
[1741417085270,0.03,139.38,139.37,109.08478868]
[1741417088692,0.03,139.38,139.37,83.26003982]
[1741417089206,0.03,139.38,139.37,69.733]
[1741417089813,0.03,139.38,139.37,83.26003982]
[1741417092416,0.03,139.38,139.37,90.43513982]
[1741417093418,0.03,139.38,139.37,109.08478868]
[1741417105222,0.03,139.38,139.37,163.19294796]
[1741417105402,0.03,139.44,139.38,18.64964886]
[1741417105611,0.03,139.44,139.43,13.52703982]
[1741417105807,0.03,139.44,139.43,69.7]
[1741417107102,0.03,139.44,139.43,90.39903982]
[1741417107311,0.03,139.44,139.43,109.04868868]
[1741417108711,0.03,139.44,139.43,20.69903982]
[1741417108910,0.03,139.44,139.43,13.52703982]
[1741417109430,0.03,139.44,139.42,13.52703982]
[1741417110020,0.03,139.44,139.43,13.52703982]
[1741417111037,0.03,139.44,139.43,20.69903982]
[1741417111526,0.03,139.44,139.43,39.34868868]
[1741417111704,0.03,139.44,139.43,109.04868868]
[1741417112538,0.03,139.45,139.44,18.64964886]
[1741417112711,0.03,139.45,139.44,86.28484796]
[1741417113219,0.03,139.45,139.44,93.45634796]
[1741417115428,0.03,139.46,139.44,93.45634796]
[1741417116426,0.0001,139.47,139.46,18.64964886]
[1741417116616,0.0001,139.47,139.46,108.05668868]
[1741417117324,0.0001,139.47,139.46,115.22718868]
[1741417120332,0.03,139.48,139.47,88.34954886]
[1741417120630,0.03,139.48,139.47,101.87658868]
[1741417122815,0.03,139.48,139.47,109.04658868]
[1741417134314,0.03,139.48,139.47,115.22658868]
[1741417138448,0.03,139.51,139.49,18.64964886]
[1741417138632,0.03,139.51,139.5,86.28484796]
[1741417138951,0.03,139.51,139.5,39.34508868]
[1741417140941,0.03,139.51,139.5,13.52703982]
[1741417142236,0.03,139.51,139.5,20.69543982]
[1741417143447,0.03,139.51,139.47,75.9128]
[1741417143639,0.03,139.51,139.48,13.52703982]
[1741417145830,0.03,139.51,139.49,13.52703982]
[1741417147448,0.03,139.51,139.49,83.22683982]
[1741417148458,0.03,139.51,139.49,69.6998]
[1741417149081,0.03,139.51,139.47,0.033]
[1741417149570,0.03,139.51,139.47,13.56003982]
[1741417152372,0.03,139.51,139.47,0.033]
[1741417153587,0.03,139.51,139.47,13.56003982]
[1741417154448,0.03,139.51,139.47,0.033]
[1741417155073,0.03,139.51,139.47,13.56003982]
[1741417161480,6.3538,139.5,139.47,0.033]
[1741417163358,6.3538,139.5,139.49,13.52703982]
[1741417163553,0.03,139.51,139.49,13.52703982]
[1741417163752,0.03,139.51,139.48,13.52703982]
[1741417166489,0.03,139.51,139.47,83.25983982]
[1741417167559,0.03,139.51,139.47,90.42963982]
[1741417167894,0.03,139.51,139.47,76.9026]
[1741417168066,0.03,139.51,139.48,13.52703982]
[1741417168986,0.03,139.51,139.48,20.69603982]
[1741417169195,0.03,139.51,139.47,90.42953982]
[1741417171106,0.03,139.51,139.47,83.25983982]
[1741417171288,0.03,139.51,139.47,0.033]
[1741417172289,0.03,139.51,139.47,20.72993982]
[1741417175191,0.03,139.51,139.47,0.033]
[1741417185817,0.03,139.51,139.5,13.52703982]
[1741417185992,0.03,139.51,139.49,13.52703982]
[1741417186701,0.03,139.51,139.5,13.52703982]
[1741417188225,0.03,139.51,139.5,20.69543982]
[1741417192241,0.03,139.51,139.5,109.04488868]
[1741417199115,0.03,139.51,139.5,90.39523982]
[1741417199810,0.03,139.51,139.5,83.22683982]
[1741417200213,0.03,139.51,139.5,13.52703982]
[1741417201115,0.03,139.51,139.5,20.69543982]
[1741417201944,0.03,139.51,139.5,39.34508868]
[1741417202239,0.03,139.51,139.5,20.69543982]
[1741417202412,0.03,139.51,139.5,39.34508868]
[1741417203842,0.03,139.51,139.5,109.04488868]
[1741417204024,0.0001,139.51,139.5,163.15304796]
[1741417204229,0.0001,139.52,139.51,18.64964886]
[1741417204536,0.0001,139.52,139.51,86.28484796]
[1741417205638,0.0001,139.54,139.53,90.34934886]
[1741417205844,0.03,139.55,139.54,18.64964886]
[1741417206031,0.03,139.55,139.54,32.17668868]
[1741417207238,0.03,139.55,139.54,45.02236191]
[1741417207439,0.03,139.61,139.54,39.34308868]
[1741417207637,0.03,139.61,139.55,32.17668868]
[1741417208649,0.03,139.61,139.55,39.34248868]
[1741417208845,0.03,139.61,139.56,18.64964886]
[1741417209145,0.03,139.61,139.57,86.28484796]
[1741417210153,0.03,139.61,139.58,18.64964886]
[1741417210345,0.03,139.61,139.6,32.17668868]
[1741417211655,0.03,139.61,139.6,101.87638868]
[1741417211955,0.03,139.61,139.6,83.22673982]
[1741417214959,0.03,139.61,139.58,69.6997]
[1741417215145,6.3681,139.61,139.57,13.52703982]
[1741417216042,6.3681,139.61,139.57,20.69183982]
[1741417216246,13.5309,139.61,139.57,13.52703982]
[1741417216562,13.5309,139.61,139.56,13.52703982]